[Event "Live Chess"]
[Site "Chess.com"]
[Date "2023.05.21"]
[Round "-"]
[White "Biranidun"]
[Black "wadsy27"]
[Result "1-0"]
[WhiteElo "2525"]
[BlackElo "2545"]
[TimeControl "300"]
[EndTime "7:03:32 PDT"]
[Termination "Biranidun won on time"]

1. e4 {[%clk 0:04:57.9]} 1... e6 {[%clk 0:04:57.7]} 2. d4 {[%clk 0:04:55.4]}
2... d5 {[%clk 0:04:57]} 3. Nc3 {[%clk 0:04:54.4]} 3... Bb4 {[%clk 0:04:54.6]}
4. e5 {[%clk 0:04:53.1]} 4... c5 {[%clk 0:04:53.9]} 5. a3 {[%clk 0:04:51.9]}
5... Ba5 {[%clk 0:04:53.2]} 6. b4 {[%clk 0:04:49.1]} 6... cxd4 {[%clk
0:04:50.8]} 7. Qg4 {[%clk 0:04:48.3]} 7... Kf8 {[%clk 0:04:49.4]} 8. Nb5 {[%clk
0:04:46.2]} 8... Bb6 {[%clk 0:04:37.2]} 9. Nf3 {[%clk 0:04:45.3]} 9... Nc6
{[%clk 0:04:32.4]} 10. Bb2 {[%clk 0:04:41.6]} 10... Nge7 {[%clk 0:04:29.5]} 11.
Nbxd4 {[%clk 0:04:39.1]} 11... h5 {[%clk 0:04:26.5]} 12. Qf4 {[%clk 0:04:38.5]}
12... Ng6 {[%clk 0:04:22.2]} 13. Nxc6 {[%clk 0:04:37.8]} 13... bxc6 {[%clk
0:04:21]} 14. Qg3 {[%clk 0:04:34.3]} 14... h4 {[%clk 0:04:18.9]} 15. Qg4 {[%clk
0:04:31.5]} 15... a5 {[%clk 0:04:04.6]} 16. Bd3 {[%clk 0:04:29.9]} 16... h3
{[%clk 0:04:01.3]} 17. g3 {[%clk 0:04:25.8]} 17... axb4 {[%clk 0:03:41.6]} 18.
axb4 {[%clk 0:04:24.6]} 18... Rxa1+ {[%clk 0:03:38.7]} 19. Bxa1 {[%clk
0:04:24.5]} 19... Ne7 {[%clk 0:03:15.7]} 20. O-O {[%clk 0:04:23.1]} 20... Nf5
{[%clk 0:03:02.7]} 21. Bxf5 {[%clk 0:04:08.9]} 21... exf5 {[%clk 0:03:01.4]} 22.
Qf4 {[%clk 0:04:08.4]} 22... Be6 {[%clk 0:02:56.4]} 23. Bd4 {[%clk 0:04:06.9]}
23... g6 {[%clk 0:02:37.5]} 24. Ra1 {[%clk 0:04:02.5]} 24... Kg7 {[%clk
0:02:30.7]} 25. Ra6 {[%clk 0:04:00.3]} 25... Bxd4 {[%clk 0:02:27]} 26. Nxd4
{[%clk 0:03:58.4]} 26... Re8 {[%clk 0:02:11.7]} 27. Rxc6 {[%clk 0:03:45.8]}
27... Qa8 {[%clk 0:02:07.1]} 28. Qc1 {[%clk 0:03:41.6]} 28... Qa4 {[%clk
0:01:51.6]} 29. c3 {[%clk 0:03:34.5]} 29... Bd7 {[%clk 0:01:46.4]} 30. Rc5
{[%clk 0:03:29]} 30... Qa8 {[%clk 0:01:24.8]} 31. Ra5 {[%clk 0:03:25.2]} 31...
Qc8 {[%clk 0:01:22.6]} 32. f4 {[%clk 0:03:08.3]} 32... Qc4 {[%clk 0:01:08.4]}
33. Qd2 {[%clk 0:02:27.7]} 33... Rc8 {[%clk 0:01:06.7]} 34. Ra7 {[%clk
0:01:51.3]} 34... Bb5 {[%clk 0:00:52.8]} 35. Nxb5 {[%clk 0:01:29.8]} 35... Qxb5
{[%clk 0:00:51.9]} 36. e6 {[%clk 0:01:28.1]} 36... Qb6+ {[%clk 0:00:46.2]} 37.
Qd4+ {[%clk 0:01:27.3]} 37... Qxd4+ {[%clk 0:00:42.6]} 38. cxd4 {[%clk
0:01:27.2]} 38... Rc1+ {[%clk 0:00:41.1]} 39. Kf2 {[%clk 0:01:26.5]} 39... Rc2+
{[%clk 0:00:39.1]} 40. Kf3 {[%clk 0:01:26]} 40... Kf6 {[%clk 0:00:29.2]} 41. e7
{[%clk 0:01:08]} 41... Rc8 {[%clk 0:00:28.2]} 42. b5 {[%clk 0:01:06.1]} 42...
Rb8 {[%clk 0:00:24.3]} 43. b6 {[%clk 0:01:03.8]} 43... Ke6 {[%clk 0:00:21.8]}
44. Rc7 {[%clk 0:00:59.5]} 44... Kd6 {[%clk 0:00:14.8]} 45. g4 {[%clk
0:00:55.5]} 45... f6 {[%clk 0:00:12.2]} 46. gxf5 {[%clk 0:00:53.9]} 46... gxf5
{[%clk 0:00:12.1]} 47. Kg3 {[%clk 0:00:51]} 47... Rh8 {[%clk 0:00:10.4]} 48. Kf3
{[%clk 0:00:44.9]} 48... Rg8 {[%clk 0:00:09.2]} 49. Ke3 {[%clk 0:00:43]} 49...
Re8 {[%clk 0:00:08.1]} 50. Kd3 {[%clk 0:00:42.1]} 50... Rh8 {[%clk 0:00:05]} 51.
Kc3 {[%clk 0:00:40.9]} 51... Rb8 {[%clk 0:00:02.9]} 52. Kc2 {[%clk 0:00:25]}
52... Ke6 {[%clk 0:00:00.9]} 53. b7 {[%clk 0:00:19.5]} 53... Kd6 {[%clk
0:00:00.8]} 54. Rc8 {[%clk 0:00:18.9]} 1-0

[Event "Live Chess"]
[Site "Chess.com"]
[Date "2023.05.21"]
[Round "-"]
[White "Conradical12"]
[Black "zdanevych"]
[Result "0-1"]
[WhiteElo "1549"]
[BlackElo "1502"]
[TimeControl "300"]
[EndTime "7:03:34 PDT"]
[Termination "zdanevych won by resignation"]

1. e4 {[%clk 0:04:56.8]} 1... c5 {[%clk 0:04:58.7]} 2. Nf3 {[%clk 0:04:56.4]}
2... e6 {[%clk 0:04:58.1]} 3. Bc4 {[%clk 0:04:55.7]} 3... d5 {[%clk 0:04:57.6]}
4. exd5 {[%clk 0:04:53.7]} 4... exd5 {[%clk 0:04:57.5]} 5. Be2 {[%clk
0:04:50.7]} 5... Nf6 {[%clk 0:04:55.4]} 6. O-O {[%clk 0:04:48.4]} 6... Bd6
{[%clk 0:04:52.9]} 7. b3 {[%clk 0:04:44.7]} 7... O-O {[%clk 0:04:51.6]} 8. Bb2
{[%clk 0:04:42.4]} 8... d4 {[%clk 0:04:50]} 9. d3 {[%clk 0:04:39.4]} 9... b6
{[%clk 0:04:49.1]} 10. c3 {[%clk 0:04:35.6]} 10... dxc3 {[%clk 0:04:47.5]} 11.
Nxc3 {[%clk 0:04:33.8]} 11... Bb7 {[%clk 0:04:46.7]} 12. Qc2 {[%clk 0:04:31.2]}
12... Nbd7 {[%clk 0:04:41.9]} 13. Rad1 {[%clk 0:04:29]} 13... Ne5 {[%clk
0:04:38.8]} 14. Nxe5 {[%clk 0:04:24.3]} 14... Bxe5 {[%clk 0:04:38.7]} 15. Ne4
{[%clk 0:04:21.8]} 15... Bxb2 {[%clk 0:04:27.8]} 16. Qxb2 {[%clk 0:04:20.1]}
16... Nxe4 {[%clk 0:04:26.9]} 17. dxe4 {[%clk 0:04:18.4]} 17... Qh4 {[%clk
0:04:26.3]} 18. Rd7 {[%clk 0:04:11]} 18... Bxe4 {[%clk 0:04:15.4]} 19. Bc4
{[%clk 0:04:07]} 19... Qg4 {[%clk 0:04:07.8]} 20. f3 {[%clk 0:03:58.7]} 20...
Qxd7 {[%clk 0:04:06.2]} 21. fxe4 {[%clk 0:03:57.7]} 21... Qd4+ {[%clk
0:04:03.4]} 22. Qxd4 {[%clk 0:03:53.7]} 22... cxd4 {[%clk 0:04:03.3]} 23. e5
{[%clk 0:03:52.9]} 23... Rad8 {[%clk 0:04:02.5]} 24. e6 {[%clk 0:03:52.3]} 24...
fxe6 {[%clk 0:03:57.6]} 25. Bxe6+ {[%clk 0:03:50.5]} 25... Kh8 {[%clk
0:03:56.6]} 26. Rd1 {[%clk 0:03:49.3]} 26... Rf6 {[%clk 0:03:51]} 27. Bc4 {[%clk
0:03:47]} 27... g6 {[%clk 0:03:44.2]} 0-1

[Event "Live Chess"]
[Site "Chess.com"]
[Date "2023.05.21"]
[Round "-"]
[White "FailsGambits"]
[Black "LiamClery2020"]
[Result "0-1"]
[WhiteElo "1328"]
[BlackElo "1955"]
[TimeControl "300"]
[EndTime "7:03:53 PDT"]
[Termination "LiamClery2020 won by checkmate"]

1. e4 {[%clk 0:04:59.5]} 1... Nf6 {[%clk 0:04:59.9]} 2. d3 {[%clk 0:04:58.2]}
2... e5 {[%clk 0:04:59]} 3. Nc3 {[%clk 0:04:58.1]} 3... Bb4 {[%clk 0:04:57.1]}
4. Bd2 {[%clk 0:04:57.1]} 4... Nc6 {[%clk 0:04:55.7]} 5. a3 {[%clk 0:04:56.6]}
5... Bxc3 {[%clk 0:04:55]} 6. Bxc3 {[%clk 0:04:56.5]} 6... d5 {[%clk 0:04:54.9]}
7. exd5 {[%clk 0:04:55.6]} 7... Nxd5 {[%clk 0:04:54.8]} 8. Bd2 {[%clk
0:04:52.4]} 8... Bf5 {[%clk 0:04:53.4]} 9. Nf3 {[%clk 0:04:50.5]} 9... O-O
{[%clk 0:04:51.6]} 10. Be2 {[%clk 0:04:47.5]} 10... Re8 {[%clk 0:04:49.3]} 11.
O-O {[%clk 0:04:46.6]} 11... Bg4 {[%clk 0:04:45]} 12. h3 {[%clk 0:04:45.3]}
12... Bh5 {[%clk 0:04:43.7]} 13. Nh2 {[%clk 0:04:26.9]} 13... Bxe2 {[%clk
0:04:42.2]} 14. Qxe2 {[%clk 0:04:26.8]} 14... Nd4 {[%clk 0:04:41.7]} 15. Qd1
{[%clk 0:04:24.8]} 15... Qf6 {[%clk 0:04:37.3]} 16. Bc3 {[%clk 0:04:18.4]} 16...
Nxc3 {[%clk 0:04:36]} 17. bxc3 {[%clk 0:04:16.6]} 17... Nc6 {[%clk 0:04:35.4]}
18. Re1 {[%clk 0:04:15.3]} 18... Rad8 {[%clk 0:04:34.1]} 19. Nf3 {[%clk
0:03:56.3]} 19... e4 {[%clk 0:04:30.7]} 20. Nd4 {[%clk 0:03:40.4]} 20... Nxd4
{[%clk 0:04:29.6]} 21. cxd4 {[%clk 0:03:40.3]} 21... Rxd4 {[%clk 0:04:29.1]} 22.
f3 {[%clk 0:03:25.2]} 22... e3 {[%clk 0:04:25.1]} 23. Qd2 {[%clk 0:03:09.3]}
23... Qe6 {[%clk 0:04:18]} 24. Qc3 {[%clk 0:03:04.3]} 24... Rd7 {[%clk 0:04:15]}
25. Rab1 {[%clk 0:02:58.3]} 25... b6 {[%clk 0:04:12.8]} 26. Rb4 {[%clk
0:02:50.1]} 26... f5 {[%clk 0:04:08]} 27. g4 {[%clk 0:02:37.1]} 27... c5 {[%clk
0:04:01.6]} 28. gxf5 {[%clk 0:02:24.3]} 28... Qxf5 {[%clk 0:03:58.6]} 29. Rg4
{[%clk 0:02:17.3]} 29... Qxf3 {[%clk 0:03:56.7]} 30. Qc4+ {[%clk 0:01:46.6]}
30... Kh8 {[%clk 0:03:54.7]} 31. Qb5 {[%clk 0:01:03.4]} 31... Qf2+ {[%clk
0:03:52.4]} 32. Kh1 {[%clk 0:00:58.9]} 32... Qxe1+ {[%clk 0:03:52.3]} 33. Kg2
{[%clk 0:00:57.2]} 33... Qf2+ {[%clk 0:03:51.8]} 34. Kh1 {[%clk 0:00:55.9]}
34... e2 {[%clk 0:03:51.7]} 35. Qxd7 {[%clk 0:00:49.5]} 35... e1=Q+ {[%clk
0:03:51.6]} 36. Rg1 {[%clk 0:00:47.5]} 36... Qexg1# {[%clk 0:03:50.9]} 0-1

[Event "Live Chess"]
[Site "Chess.com"]
[Date "2023.05.21"]
[Round "-"]
[White "Doge_Dandolo"]
[Black "GEMdzq"]
[Result "0-1"]
[WhiteElo "1888"]
[BlackElo "2232"]
[TimeControl "300"]
[EndTime "7:03:55 PDT"]
[Termination "GEMdzq won by resignation"]

1. Nf3 {[%clk 0:04:57.1]} 1... c5 {[%clk 0:04:58.2]} 2. c4 {[%clk 0:04:55.6]}
2... Nc6 {[%clk 0:04:56.8]} 3. d4 {[%clk 0:04:54.1]} 3... cxd4 {[%clk
0:04:54.5]} 4. Nxd4 {[%clk 0:04:52.8]} 4... e5 {[%clk 0:04:51.4]} 5. Nc2 {[%clk
0:04:50.8]} 5... Nf6 {[%clk 0:04:49.7]} 6. g3 {[%clk 0:04:49.1]} 6... d5 {[%clk
0:04:46.3]} 7. cxd5 {[%clk 0:04:46.1]} 7... Qxd5 {[%clk 0:04:45.4]} 8. Bg2
{[%clk 0:04:38.7]} 8... Qxd1+ {[%clk 0:04:43.4]} 9. Kxd1 {[%clk 0:04:35.9]} 9...
Bf5 {[%clk 0:04:42.2]} 10. Ne3 {[%clk 0:04:32.7]} 10... O-O-O+ {[%clk
0:04:40.8]} 11. Ke1 {[%clk 0:04:31.5]} 11... Bxb1 {[%clk 0:04:21.4]} 12. Rxb1
{[%clk 0:04:29.9]} 12... Bb4+ {[%clk 0:04:20.6]} 13. Kf1 {[%clk 0:04:27]} 13...
Rd6 {[%clk 0:04:07]} 14. a3 {[%clk 0:04:25.7]} 14... Bc5 {[%clk 0:04:01.8]} 15.
Bf3 {[%clk 0:04:18.6]} 15... e4 {[%clk 0:03:56]} 16. Bg2 {[%clk 0:04:15.4]}
16... Rhd8 {[%clk 0:03:51.4]} 17. Bh3+ {[%clk 0:04:14.3]} 17... Kb8 {[%clk
0:03:49.4]} 18. Kg2 {[%clk 0:04:12.3]} 18... Nd4 {[%clk 0:03:41.2]} 19. Re1
{[%clk 0:04:06.6]} 19... g6 {[%clk 0:03:35.3]} 20. b4 {[%clk 0:04:03.5]} 20...
Bb6 {[%clk 0:03:32.5]} 21. Bb2 {[%clk 0:04:02.2]} 21... Nh5 {[%clk 0:02:55.8]}
22. Nc4 {[%clk 0:03:56.5]} 22... Rd5 {[%clk 0:02:54.3]} 23. Kg1 {[%clk 0:03:42]}
23... f5 {[%clk 0:02:31.4]} 24. Bg2 {[%clk 0:03:40.2]} 24... Bc7 {[%clk
0:02:06.4]} 25. f3 {[%clk 0:03:36.7]} 25... exf3 {[%clk 0:01:55.6]} 26. exf3
{[%clk 0:03:35.4]} 26... b5 {[%clk 0:01:54.1]} 27. Ne3 {[%clk 0:03:29.5]} 27...
R5d7 {[%clk 0:01:48.5]} 28. f4 {[%clk 0:03:23.7]} 28... Bb6 {[%clk 0:01:40.9]}
29. Kf1 {[%clk 0:03:19.5]} 29... Nf6 {[%clk 0:01:38.5]} 30. Rbc1 {[%clk
0:02:59.6]} 30... Ne4 {[%clk 0:01:35.2]} 31. Nc2 {[%clk 0:02:47.3]} 31... Nb3
{[%clk 0:01:28.9]} 32. Be5+ {[%clk 0:02:36.4]} 32... Kb7 {[%clk 0:01:23.1]} 33.
Rb1 {[%clk 0:02:33.4]} 33... Nd2+ {[%clk 0:01:21.2]} 34. Ke2 {[%clk 0:02:28.9]}
34... Nxb1 {[%clk 0:01:16.8]} 35. Rxb1 {[%clk 0:02:27.2]} 35... Rd2+ {[%clk
0:01:16]} 0-1

[Event "Live Chess"]
[Site "Chess.com"]
[Date "2023.05.21"]
[Round "-"]
[White "JoRoSaR"]
[Black "Duke_of_Bebington"]
[Result "0-1"]
[WhiteElo "1670"]
[BlackElo "1556"]
[TimeControl "300"]
[EndTime "7:03:59 PDT"]
[Termination "Duke_of_Bebington won by resignation"]

1. e4 {[%clk 0:04:56.6]} 1... e5 {[%clk 0:04:58.7]} 2. Nf3 {[%clk 0:04:56]} 2...
Nf6 {[%clk 0:04:56.8]} 3. Nxe5 {[%clk 0:04:53.9]} 3... d6 {[%clk 0:04:55.1]} 4.
Nf3 {[%clk 0:04:52.6]} 4... Nxe4 {[%clk 0:04:53]} 5. Be2 {[%clk 0:04:52.2]} 5...
d5 {[%clk 0:04:47.7]} 6. O-O {[%clk 0:04:50.1]} 6... Be7 {[%clk 0:04:44.3]} 7.
Bd3 {[%clk 0:04:49.6]} 7... Nf6 {[%clk 0:04:43]} 8. Re1 {[%clk 0:04:48.8]} 8...
O-O {[%clk 0:04:42.2]} 9. c3 {[%clk 0:04:47.6]} 9... Bg4 {[%clk 0:04:40]} 10.
Be2 {[%clk 0:04:45.4]} 10... Nbd7 {[%clk 0:04:34.5]} 11. d4 {[%clk 0:04:44.8]}
11... c5 {[%clk 0:04:32.8]} 12. Be3 {[%clk 0:04:42.7]} 12... c4 {[%clk
0:04:30.2]} 13. Nbd2 {[%clk 0:04:40.9]} 13... Re8 {[%clk 0:04:25.2]} 14. h3
{[%clk 0:04:39.6]} 14... Bh5 {[%clk 0:04:23.8]} 15. Kh1 {[%clk 0:04:39]} 15...
Bd6 {[%clk 0:04:17.5]} 16. g4 {[%clk 0:04:37.9]} 16... Bg6 {[%clk 0:04:15.9]}
17. Nh4 {[%clk 0:04:37.1]} 17... Rxe3 {[%clk 0:03:59.4]} 18. fxe3 {[%clk
0:04:35]} 18... Ne4 {[%clk 0:03:58.2]} 19. Nxe4 {[%clk 0:04:25.4]} 19... Bxe4+
{[%clk 0:03:56.4]} 20. Ng2 {[%clk 0:04:15.9]} 20... Qh4 {[%clk 0:03:51.7]} 21.
Bf3 {[%clk 0:04:14]} 21... Qxh3+ {[%clk 0:03:48.5]} 22. Kg1 {[%clk 0:04:12.6]}
22... Bxf3 {[%clk 0:03:46.9]} 23. Qd2 {[%clk 0:04:11]} 23... Qxg2+ {[%clk
0:03:25.7]} 24. Qxg2 {[%clk 0:04:04.1]} 24... Bxg2 {[%clk 0:03:25.6]} 25. Kxg2
{[%clk 0:04:03.5]} 25... Nf6 {[%clk 0:03:25.5]} 26. Rf1 {[%clk 0:04:01]} 26...
Ne4 {[%clk 0:03:23]} 27. Rf5 {[%clk 0:03:53]} 27... Ng3 {[%clk 0:03:10.9]} 28.
Rxd5 {[%clk 0:03:49.2]} 28... Bc7 {[%clk 0:03:09.1]} 29. e4 {[%clk 0:03:45.7]}
29... Nxe4 {[%clk 0:03:07.5]} 30. Re1 {[%clk 0:03:43.1]} 30... Nf6 {[%clk
0:02:59.2]} 31. Rc5 {[%clk 0:03:41.9]} 31... Bb6 {[%clk 0:02:52.3]} 32. Rxc4
{[%clk 0:03:41.3]} 32... Nxg4 {[%clk 0:02:51.4]} 33. Re7 {[%clk 0:03:39.4]}
33... Nf6 {[%clk 0:02:45.3]} 34. b4 {[%clk 0:03:35.9]} 34... h5 {[%clk
0:02:40.6]} 35. a4 {[%clk 0:03:34.5]} 35... a5 {[%clk 0:02:38.8]} 36. b5 {[%clk
0:03:32.1]} 36... Rd8 {[%clk 0:02:32.4]} 37. Rxb7 {[%clk 0:03:30.9]} 37... Nd5
{[%clk 0:02:24.8]} 38. Rc6 {[%clk 0:03:26.8]} 38... Re8 {[%clk 0:02:15.1]} 39.
c4 {[%clk 0:03:24.8]} 39... Ne3+ {[%clk 0:02:10.9]} 40. Kf3 {[%clk 0:03:19.8]}
40... Bxd4 {[%clk 0:02:06.5]} 41. Rcc7 {[%clk 0:03:16.9]} 41... Nd5 {[%clk
0:01:56.6]} 42. Rxf7 {[%clk 0:03:14.8]} 42... Re3+ {[%clk 0:01:53.6]} 43. Kg2
{[%clk 0:03:12.6]} 43... Re2+ {[%clk 0:01:52.4]} 44. Kf1 {[%clk 0:03:11.3]}
44... Rd2 {[%clk 0:01:41]} 45. Rfd7 {[%clk 0:03:09.5]} 45... Bc3 {[%clk
0:01:26.7]} 46. Ra7 {[%clk 0:02:56.9]} 46... Ne3+ {[%clk 0:01:16.5]} 47. Ke1
{[%clk 0:02:55.7]} 47... Rxd7+ {[%clk 0:01:14.1]} 0-1

[Event "Live Chess"]
[Site "Chess.com"]
[Date "2023.05.21"]
[Round "-"]
[White "nigelst"]
[Black "ClassyChameleon"]
[Result "1-0"]
[WhiteElo "1697"]
[BlackElo "1083"]
[TimeControl "300"]
[EndTime "7:04:02 PDT"]
[Termination "nigelst won by resignation"]

1. e4 {[%clk 0:04:57.5]} 1... e5 {[%clk 0:04:58.9]} 2. Nf3 {[%clk 0:04:55.2]}
2... Nc6 {[%clk 0:04:58.2]} 3. Bb5 {[%clk 0:04:54]} 3... Nf6 {[%clk 0:04:56.5]}
4. O-O {[%clk 0:04:51.8]} 4... Bc5 {[%clk 0:04:52.9]} 5. c3 {[%clk 0:04:49.6]}
5... Bb6 {[%clk 0:04:50.9]} 6. d4 {[%clk 0:04:47.4]} 6... exd4 {[%clk
0:04:47.6]} 7. cxd4 {[%clk 0:04:45.6]} 7... d5 {[%clk 0:04:44.6]} 8. e5 {[%clk
0:04:44]} 8... Ne4 {[%clk 0:04:40.8]} 9. Bd3 {[%clk 0:04:40.5]} 9... O-O {[%clk
0:04:37.2]} 10. Bxe4 {[%clk 0:04:38.8]} 10... dxe4 {[%clk 0:04:36.4]} 11. Ng5
{[%clk 0:04:37.5]} 11... Bxd4 {[%clk 0:04:28.7]} 12. Qh5 {[%clk 0:04:30.4]}
12... h6 {[%clk 0:04:20.8]} 13. Nxe4 {[%clk 0:04:28.8]} 13... Bxe5 {[%clk
0:04:16.5]} 14. Nbc3 {[%clk 0:04:17.1]} 14... Be6 {[%clk 0:03:51.9]} 15. Be3
{[%clk 0:04:09.5]} 15... Qe7 {[%clk 0:03:27.1]} 16. Rad1 {[%clk 0:04:00.7]}
16... Rad8 {[%clk 0:03:21.9]} 17. Nc5 {[%clk 0:03:23.1]} 17... Bxc3 {[%clk
0:02:53.1]} 18. bxc3 {[%clk 0:03:17.8]} 18... Bxa2 {[%clk 0:02:35.2]} 19. Nxb7
{[%clk 0:03:11.4]} 19... Rxd1 {[%clk 0:02:32.2]} 20. Rxd1 {[%clk 0:03:08.7]}
20... Bb3 {[%clk 0:01:42]} 21. Re1 {[%clk 0:02:46.2]} 21... a5 {[%clk
0:01:29.7]} 22. Nc5 {[%clk 0:02:34.6]} 22... a4 {[%clk 0:01:22.2]} 23. Qe2
{[%clk 0:02:12.6]} 23... Na5 {[%clk 0:01:00.3]} 24. Qb5 {[%clk 0:01:54.7]} 24...
Nc4 {[%clk 0:00:36.2]} 25. Nxb3 {[%clk 0:01:45]} 25... Nxe3 {[%clk 0:00:33.5]}
26. Qxa4 {[%clk 0:01:21.8]} 26... Rd8 {[%clk 0:00:18.3]} 27. Nd4 {[%clk
0:01:15.1]} 27... Qg5 {[%clk 0:00:13]} 28. Rxe3 {[%clk 0:01:05.7]} 28... Qf4
{[%clk 0:00:07.9]} 29. g3 {[%clk 0:00:57]} 29... Qg4 {[%clk 0:00:06]} 30. Kg2
{[%clk 0:00:51.7]} 30... Qd1 {[%clk 0:00:05.2]} 31. Qxd1 {[%clk 0:00:47.7]}
31... Rxd4 {[%clk 0:00:04.9]} 32. Qxd4 {[%clk 0:00:46.3]} 32... c5 {[%clk
0:00:04.6]} 1-0

[Event "Live Chess"]
[Site "Chess.com"]
[Date "2023.05.21"]
[Round "-"]
[White "Tushinskiy"]
[Black "luckywookie"]
[Result "1-0"]
[WhiteElo "2221"]
[BlackElo "821"]
[TimeControl "300"]
[EndTime "7:04:06 PDT"]
[Termination "Tushinskiy won by checkmate"]

1. d4 {[%clk 0:04:58.4]} 1... c6 {[%clk 0:04:51.2]} 2. c3 {[%clk 0:04:58.3]}
2... d5 {[%clk 0:04:50.3]} 3. Nf3 {[%clk 0:04:44.9]} 3... e6 {[%clk 0:04:34.7]}
4. Bf4 {[%clk 0:04:44.8]} 4... c5 {[%clk 0:04:32.4]} 5. e3 {[%clk 0:04:43]} 5...
Nc6 {[%clk 0:04:31.5]} 6. Bd3 {[%clk 0:04:35.3]} 6... Nf6 {[%clk 0:04:18.1]} 7.
Nbd2 {[%clk 0:04:33.3]} 7... e5 {[%clk 0:04:15.9]} 8. Nxe5 {[%clk 0:04:29.2]}
8... Nxe5 {[%clk 0:04:14]} 9. Bxe5 {[%clk 0:04:27.4]} 9... c4 {[%clk 0:04:09]}
10. Bc2 {[%clk 0:04:25.8]} 10... Bd6 {[%clk 0:04:01.2]} 11. Bg3 {[%clk
0:04:23.5]} 11... O-O {[%clk 0:03:57.7]} 12. Qe2 {[%clk 0:04:20.7]} 12... Re8
{[%clk 0:03:54.1]} 13. O-O-O {[%clk 0:04:06.4]} 13... Bg4 {[%clk 0:03:51]} 14.
f3 {[%clk 0:04:04.3]} 14... Bd7 {[%clk 0:03:44.5]} 15. Bxd6 {[%clk 0:04:02]}
15... Bb5 {[%clk 0:03:41]} 16. Be5 {[%clk 0:03:58.5]} 16... Nd7 {[%clk
0:03:37.8]} 17. Bg3 {[%clk 0:03:56.1]} 17... f6 {[%clk 0:03:35.8]} 18. e4 {[%clk
0:03:54.4]} 18... Nb6 {[%clk 0:03:29.1]} 19. Qf2 {[%clk 0:03:47]} 19... Ba4
{[%clk 0:03:23.3]} 20. Rhe1 {[%clk 0:03:40.9]} 20... Bxc2 {[%clk 0:03:13.1]} 21.
Kxc2 {[%clk 0:03:40.8]} 21... a5 {[%clk 0:03:03.3]} 22. exd5 {[%clk 0:03:35.5]}
22... Re7 {[%clk 0:02:59.4]} 23. Rxe7 {[%clk 0:03:32.9]} 23... Qxe7 {[%clk
0:02:58.1]} 24. Re1 {[%clk 0:03:31.7]} 24... Qf7 {[%clk 0:02:52]} 25. d6 {[%clk
0:03:29.6]} 25... a4 {[%clk 0:02:47.3]} 26. a3 {[%clk 0:03:28]} 26... Nd5 {[%clk
0:02:43.1]} 27. Qe2 {[%clk 0:03:23.2]} 27... Qg6+ {[%clk 0:02:24.3]} 28. Qe4
{[%clk 0:03:21.6]} 28... Qxe4+ {[%clk 0:02:21.5]} 29. fxe4 {[%clk 0:03:21.5]}
29... Nb6 {[%clk 0:02:11.9]} 30. e5 {[%clk 0:03:19]} 30... fxe5 {[%clk
0:02:04.3]} 31. dxe5 {[%clk 0:03:18.9]} 31... Nd5 {[%clk 0:02:02.4]} 32. Nxc4
{[%clk 0:03:17.1]} 32... Rc8 {[%clk 0:01:57.4]} 33. Ne3 {[%clk 0:03:12.1]} 33...
b5 {[%clk 0:01:56.4]} 34. Nxd5 {[%clk 0:03:07.1]} 34... b4 {[%clk 0:01:55.4]}
35. Ne7+ {[%clk 0:03:05.5]} 35... Kf7 {[%clk 0:01:53.3]} 36. Nxc8 {[%clk
0:03:05.4]} 36... bxc3 {[%clk 0:01:50.4]} 37. e6+ {[%clk 0:03:03.5]} 37... Kg6
{[%clk 0:01:47.2]} 38. e7 {[%clk 0:02:59.8]} 38... cxb2 {[%clk 0:01:46.2]} 39.
e8=Q+ {[%clk 0:02:57.5]} 39... Kg5 {[%clk 0:01:42.4]} 40. Re5+ {[%clk
0:02:55.1]} 40... Kg4 {[%clk 0:01:40.8]} 41. Qh5# {[%clk 0:02:54.4]} 1-0

[Event "Live Chess"]
[Site "Chess.com"]
[Date "2023.05.21"]
[Round "-"]
[White "Chesscoach_Golichenko"]
[Black "NotHarryV"]
[Result "1-0"]
[WhiteElo "2623"]
[BlackElo "1520"]
[TimeControl "300"]
[EndTime "7:04:07 PDT"]
[Termination "Chesscoach_Golichenko won by checkmate"]

1. d4 {[%clk 0:04:58.7]} 1... Nf6 {[%clk 0:04:58.5]} 2. c4 {[%clk 0:04:51.6]}
2... e6 {[%clk 0:04:57.8]} 3. Nc3 {[%clk 0:04:49.9]} 3... Bb4 {[%clk 0:04:57.1]}
4. Qc2 {[%clk 0:04:49.2]} 4... c5 {[%clk 0:04:56.1]} 5. dxc5 {[%clk 0:04:47.7]}
5... Bxc5 {[%clk 0:04:55.3]} 6. Nf3 {[%clk 0:04:43.7]} 6... O-O {[%clk
0:04:51.3]} 7. Bg5 {[%clk 0:04:37.5]} 7... d6 {[%clk 0:04:43.1]} 8. e4 {[%clk
0:04:32.9]} 8... Nbd7 {[%clk 0:04:20.8]} 9. a3 {[%clk 0:04:28.6]} 9... Qc7
{[%clk 0:04:13.8]} 10. Rd1 {[%clk 0:04:21.9]} 10... a6 {[%clk 0:03:58.9]} 11.
Bd3 {[%clk 0:04:17.2]} 11... Re8 {[%clk 0:03:38.9]} 12. O-O {[%clk 0:04:14.6]}
12... h6 {[%clk 0:03:30.8]} 13. Bf4 {[%clk 0:04:11.1]} 13... e5 {[%clk
0:03:28.5]} 14. Bc1 {[%clk 0:04:07.1]} 14... Nf8 {[%clk 0:03:11.9]} 15. Qe2
{[%clk 0:04:03.1]} 15... Ne6 {[%clk 0:03:08.2]} 16. b4 {[%clk 0:04:00.4]} 16...
Ba7 {[%clk 0:03:03.9]} 17. Nd5 {[%clk 0:03:58.8]} 17... Nxd5 {[%clk 0:03:00.4]}
18. exd5 {[%clk 0:03:57.7]} 18... Nf4 {[%clk 0:02:50.8]} 19. Bxf4 {[%clk
0:03:55.5]} 19... exf4 {[%clk 0:02:50.7]} 20. Qxe8# {[%clk 0:03:53.4]} 1-0

[Event "Live Chess"]
[Site "Chess.com"]
[Date "2023.05.21"]
[Round "-"]
[White "MartinWalker4"]
[Black "BillythekidFellowes"]
[Result "1-0"]
[WhiteElo "2081"]
[BlackElo "2089"]
[TimeControl "300"]
[EndTime "7:04:10 PDT"]
[Termination "MartinWalker4 won by resignation"]

1. e4 {[%clk 0:04:57.2]} 1... Nc6 {[%clk 0:04:53.9]} 2. Nf3 {[%clk 0:04:50.2]}
2... d6 {[%clk 0:04:49.7]} 3. Nc3 {[%clk 0:04:45.9]} 3... Nf6 {[%clk 0:04:48.6]}
4. d4 {[%clk 0:04:43.5]} 4... Bg4 {[%clk 0:04:46.6]} 5. d5 {[%clk 0:04:39.4]}
5... Nb8 {[%clk 0:04:45.7]} 6. Be2 {[%clk 0:04:35.5]} 6... g6 {[%clk 0:04:39]}
7. O-O {[%clk 0:04:33.4]} 7... Bg7 {[%clk 0:04:37.2]} 8. h3 {[%clk 0:04:32.2]}
8... Bxf3 {[%clk 0:04:35.3]} 9. Bxf3 {[%clk 0:04:30.4]} 9... Nbd7 {[%clk
0:04:34.4]} 10. Be3 {[%clk 0:04:28.9]} 10... Ne5 {[%clk 0:04:33.1]} 11. Be2
{[%clk 0:04:27]} 11... O-O {[%clk 0:04:31.9]} 12. Qd2 {[%clk 0:04:18.8]} 12...
Nfd7 {[%clk 0:04:30.1]} 13. f4 {[%clk 0:04:14.4]} 13... f5 {[%clk 0:04:25.1]}
14. fxe5 {[%clk 0:04:12.6]} 14... Nxe5 {[%clk 0:04:25]} 15. exf5 {[%clk
0:04:08.6]} 15... gxf5 {[%clk 0:04:22.7]} 16. Bh6 {[%clk 0:03:58.7]} 16... Qe8
{[%clk 0:04:20.6]} 17. Bxg7 {[%clk 0:03:56.6]} 17... Kxg7 {[%clk 0:04:19.7]} 18.
Qg5+ {[%clk 0:03:55.3]} 18... Ng6 {[%clk 0:04:19]} 19. Rxf5 {[%clk 0:03:53]}
19... h6 {[%clk 0:04:17.9]} 20. Rxf8 {[%clk 0:03:43.5]} 20... Qxf8 {[%clk
0:04:16.2]} 21. Qe3 {[%clk 0:03:42.2]} 21... Qf6 {[%clk 0:04:09.4]} 22. Rf1
{[%clk 0:03:39.1]} 22... Qh4 {[%clk 0:04:08.6]} 23. Qe4 {[%clk 0:03:33.6]} 23...
Qg3 {[%clk 0:04:04.3]} 24. Bd3 {[%clk 0:03:24.8]} 24... Qg5 {[%clk 0:03:31.8]}
25. Qxg6+ {[%clk 0:03:17.5]} 1-0